bitfinex/quotes_SOLUSD_20220117
["timestamp","ask_amount","ask_price","bid_price","bid_amount"]
[1642441209029,36.42137358,140.3,140.2,53.02647478]
[1642441209632,3.99063815,140.28,140.21,10.6941]
[1642441209829,3.99063815,140.28,140.22,0.25]
[1642441210030,40.50687171,140.27,140.21,6.0]
[1642441210232,42.26307129,140.27,140.2,46.51647478]
[1642441210430,0.25,140.26,140.2,46.51647478]
[1642441210632,0.25,140.26,140.17,10.29]
[1642441211131,10.9486,140.26,140.17,10.29]
[1642441211733,3.99063815,140.25,140.18,48.12079465]
[1642441212131,3.8427054,140.25,140.19,56.0]
[1642441212637,3.8427054,140.25,140.18,48.12079465]
[1642441212832,10.9486,140.26,140.18,48.12079465]
[1642441213232,10.6986,140.26,140.18,48.12079465]
[1642441213437,40.50687171,140.27,140.19,0.25]
[1642441213635,40.50687171,140.27,140.18,48.12079465]
[1642441213834,46.50687171,140.27,140.18,48.12079465]
[1642441214236,46.50687171,140.27,140.17,10.29]
[1642441214434,65.69377171,140.27,140.17,16.29]
[1642441214636,0.25,140.26,140.13,24.4216]
[1642441214839,0.25,140.26,140.14,0.25]
[1642441215034,0.25,140.26,140.13,40.7116]
[1642441215337,35.6769,140.25,140.14,43.1417651]
[1642441215546,45.94196234,140.23,140.14,43.1417651]
[1642441215742,10.7031,140.21,140.14,43.1417651]
[1642441216142,0.25,140.2,140.14,43.1417651]
[1642441217146,37.57008366,140.2,140.13,34.7116]
[1642441217343,70.93,140.17,139.99,121.4243592]
[1642441217743,0.25,140.16,139.99,121.4243592]
[1642441217947,81.22,140.15,139.99,132.1352592]
[1642441218146,39.24947255,140.14,140.0,37.47957084]
[1642441218346,10.711,140.12,140.0,37.47957084]
[1642441218548,43.71244057,140.11,140.0,37.47957084]
[1642441218746,43.96244057,140.11,140.0,43.47957084]
[1642441219048,43.96244057,140.11,140.0,37.47957084]
[1642441219249,49.96244057,140.11,140.0,37.47957084]
[1642441219445,43.96244057,140.11,140.0,37.47957084]
[1642441219647,54.67274057,140.11,140.0,48.18987084]
[1642441219847,10.29,140.13,140.0,119.37987084]
[1642441220047,10.29,140.13,140.0,125.37987084]
[1642441220048,16.29,140.13,140.0,125.37987084]
[1642441220247,10.29,140.13,140.0,125.37987084]
[1642441220447,10.29,140.13,140.0,54.44987084]
[1642441220848,48.50855424,140.12,140.03,10.7075]
[1642441221048,48.50855424,140.12,140.04,40.67549391]
[1642441221347,0.25,140.11,140.04,40.67549391]
[1642441221949,0.25,140.11,140.01,0.25]
[1642441222248,10.9599,140.11,140.01,0.25]
[1642441222447,10.9599,140.11,140.0,0.25]
[1642441222850,10.9599,140.11,139.99,117.89968201]
[1642441223050,10.9599,140.11,140.0,42.01788615]
[1642441223249,10.29,140.1,140.0,42.01788615]
[1642441223449,48.6804963,140.09,140.0,42.01788615]
[1642441223649,10.7125,140.08,140.0,42.01788615]
[1642441223875,0.25,140.07,140.0,42.01788615]
[1642441224976,0.25,140.08,140.0,42.01788615]
[1642441227685,10.9623,140.08,140.0,42.01788615]
[1642441230385,0.25,140.08,140.0,42.01788615]
[1642441230787,0.25,140.09,140.0,42.01788615]
[1642441230985,10.54,140.09,140.0,42.01788615]
[1642441231186,10.54,140.09,140.0,42.27788615]
[1642441235291,10.54,140.09,140.0,52.98798615]
[1642441235689,10.29,140.09,140.01,0.25]
[1642441235889,23.756,140.12,140.01,0.25]
[1642441236090,10.29,140.13,140.01,0.25]
[1642441237092,0.25,140.12,140.01,0.25]
[1642441237290,16.29,140.13,140.01,0.25]
[1642441237689,16.29,140.13,140.01,10.9593]
[1642441237893,16.29,140.13,140.01,17.2193]
[1642441238593,0.25,140.12,140.01,17.2193]
[1642441239591,0.25,140.12,140.01,16.9593]
[1642441239794,37.73223507,140.1,140.0,42.01788615]
[1642441239993,10.29,140.09,140.0,42.01788615]
[1642441240194,10.54,140.09,140.0,42.01788615]
[1642441240593,21.2514,140.09,140.0,42.01788615]
[1642441241400,21.2514,140.09,140.01,0.25]
[1642441241594,10.54,140.09,140.01,0.25]
[1642441244796,16.54,140.09,140.01,0.25]
[1642441244998,10.54,140.09,140.01,0.25]
[1642441248303,10.54,140.09,140.0,42.01788615]
[1642441248504,21.2516,140.09,140.0,42.01788615]
[1642441248708,21.2516,140.09,139.99,47.93728201]
[1642441248913,27.2516,140.09,139.99,47.93728201]
[1642441249511,27.2516,140.09,139.99,0.19968201]
[1642441249806,10.715,140.06,139.99,0.19968201]
[1642441250034,21.005,140.06,139.99,0.19968201]
[1642441250206,0.25,140.05,139.99,0.19968201]
[1642441251510,10.29,140.06,139.99,0.19968201]
[1642441251709,6.0,140.09,139.99,0.19968201]
[1642441251910,16.29,140.09,139.99,0.19968201]
[1642441252110,10.29,140.09,139.99,0.19968201]
[1642441252308,16.29,140.09,139.99,0.19968201]
[1642441252508,48.44974188,140.09,139.99,0.19968201]
[1642441252911,0.25,140.08,139.99,0.19968201]
[1642441253609,0.25,140.08,139.99,10.91038201]
[1642441253812,0.25,140.08,140.0,45.59966902]
[1642441254310,0.25,140.08,140.0,51.59966902]
[1642441254511,0.25,140.08,140.0,45.59966902]
[1642441255510,0.25,140.08,140.0,56.30936902]
[1642441255910,10.29,140.09,140.0,56.30936902]
[1642441256110,10.29,140.09,140.0,62.56936902]
[1642441256310,90.37702644,140.14,140.0,62.56936902]
[1642441256511,57.8958,140.14,140.01,22.9416]
[1642441256713,63.8958,140.14,140.03,10.7079]
[1642441256913,107.50598719,140.14,140.04,41.29536065]
[1642441257115,107.50598719,140.14,140.04,41.54536065]
[1642441257314,107.50598719,140.14,140.04,41.80536065]
[1642441257542,118.21408719,140.14,140.04,41.80536065]
[1642441259620,0.25,140.13,140.04,41.80536065]
[1642441262022,0.25,140.13,140.04,52.51216065]
[1642441262421,6.0,140.14,140.04,58.51216065]
[1642441262622,1.33642015,140.15,140.05,70.93]
[1642441262824,0.25,140.14,140.06,0.25]
[1642441263727,42.66555905,140.15,140.06,0.25]
[1642441264324,42.66555905,140.15,140.06,10.955]
[1642441264523,42.66555905,140.15,140.07,41.29166484]
[1642441264925,42.66555905,140.15,140.08,0.25]
[1642441265326,42.66555905,140.15,140.07,41.29166484]
[1642441265527,53.37255905,140.15,140.07,41.29166484]
[1642441266229,59.37255905,140.15,140.07,41.29166484]
[1642441266428,0.25,140.14,140.07,41.29166484]
[1642441266627,48.66555905,140.15,140.07,41.29166484]
[1642441266830,42.66555905,140.15,140.08,0.25]
[1642441268330,1.33642015,140.15,140.08,0.25]
[1642441269230,0.25,140.14,140.08,0.25]
[1642441270435,40.86244297,140.15,140.08,0.25]
[1642441271839,1.33642015,140.15,140.08,0.25]
[1642441272239,0.25,140.14,140.08,0.25]
[1642441272854,40.29703675,140.14,140.05,22.7912]
[1642441273056,51.00523675,140.14,140.02,10.7079]
[1642441273255,51.00523675,140.14,140.02,50.1849]
[1642441273859,51.00523675,140.14,140.03,37.88590086]
[1642441274256,51.00523675,140.14,140.04,0.25]
[1642441274656,51.00523675,140.14,140.03,43.88590086]
[1642441274859,57.00523675,140.14,140.03,43.88590086]
[1642441275261,70.93,140.13,140.03,37.88590086]
[1642441275458,57.00523675,140.14,140.03,37.88590086]
[1642441276260,57.00523675,140.14,140.04,0.25]
[1642441279561,81.22,140.13,140.02,23.187]
[1642441279763,10.7103,140.11,140.02,23.187]
[1642441280162,81.6403,140.11,140.02,29.187]
[1642441280365,81.6403,140.11,140.02,23.187]
[1642441280566,49.62131637,140.1,140.02,68.80166077]
[1642441280763,49.62131637,140.1,140.02,74.80166077]
[1642441281364,0.25,140.09,140.02,74.80166077]
[1642441282267,0.25,140.09,140.02,75.06166077]
[1642441282667,20.999,140.13,140.03,0.25]
[1642441282867,0.25,140.1,140.03,0.25]
[1642441283267,0.25,140.1,140.02,74.80166077]
[1642441283467,0.25,140.1,140.02,29.187]
[1642441283669,10.9608,140.1,140.02,6.0]
[1642441283870,0.25,140.09,139.99,29.77638201]
[1642441284473,36.22318994,140.09,139.99,6.19968201]
[1642441284672,10.29,140.08,139.99,6.19968201]
[1642441284872,0.25,140.07,139.99,0.19968201]
[1642441286172,10.7159,140.06,139.99,0.19968201]
[1642441286372,58.58511865,140.06,139.99,0.19968201]
[1642441286772,10.7159,140.06,139.99,0.19968201]
[1642441286975,0.25,140.07,139.99,0.19968201]
[1642441287372,10.29,140.08,139.99,0.19968201]
[1642441288577,10.29,140.08,139.99,10.91008201]
[1642441288778,10.7112,140.1,140.0,0.25]
[1642441288983,5.9459813,140.12,140.0,0.25]
[1642441289281,5.9459813,140.14,140.0,36.54829958]
[1642441289479,5.9459813,140.14,140.01,1.75619958]
[1642441289678,5.9459813,140.14,140.03,10.7076]
[1642441289880,48.33869763,140.13,140.04,38.3997218]
[1642441290279,48.33869763,140.13,140.04,44.6597218]
[1642441291483,34.9153,140.16,140.04,44.6597218]
[1642441291783,0.25,140.15,140.05,34.8884]
[1642441291979,0.25,140.15,140.05,40.8884]
[1642441292179,0.25,140.15,140.06,0.25]
[1642441292583,44.80377646,140.15,140.06,0.25]
[1642441293785,44.80377646,140.15,140.05,35.1484]
[1642441293984,44.80377646,140.15,140.06,0.25]
[1642441294984,4.07353647,140.14,140.06,0.25]
[1642441295386,0.25,140.13,140.06,0.25]
[1642441299891,0.25,140.14,140.06,0.25]
[1642441300292,54.62731293,140.15,140.06,10.9555]
[1642441300489,54.62731293,140.15,140.07,39.91123821]
[1642441300690,4.07353647,140.15,140.07,39.91123821]
[1642441300889,4.07353647,140.15,140.08,0.25]
[1642441301493,4.07353647,140.15,140.09,10.7031]
[1642441301890,4.07353647,140.15,140.1,0.25]
[1642441302496,27.42363647,140.17,140.1,0.25]
[1642441302691,41.38699056,140.16,140.1,0.25]
[1642441302894,41.38699056,140.16,140.07,67.16553821]
[1642441303594,0.25,140.15,140.07,67.16553821]
[1642441304396,0.25,140.16,140.07,67.16553821]
[1642441304596,4.32353647,140.16,140.07,67.16553821]
[1642441304796,4.32353647,140.16,140.09,10.7031]
[1642441304999,4.07353647,140.16,140.1,0.25]
[1642441305204,4.07353647,140.16,140.1,47.52131822]
[1642441305404,4.07353647,140.17,140.1,47.78131822]
[1642441305807,4.07353647,140.17,140.1,53.78131822]
[1642441306005,4.07353647,140.17,140.11,20.9901]
[1642441306207,41.51164305,140.16,140.11,20.9901]
[1642441306428,41.51164305,140.16,140.11,10.29]
[1642441306634,41.51164305,140.16,140.11,16.29]
[1642441306927,41.51164305,140.16,140.11,10.29]
[1642441308331,41.51164305,140.16,140.11,58.2860214]
[1642441308532,4.07353647,140.18,140.11,58.2860214]
[1642441308730,4.07353647,140.18,140.12,0.25]
[1642441310139,100.31725673,140.19,140.12,0.25]
[1642441310434,100.31725673,140.19,140.1,0.25]
[1642441311435,100.31725673,140.19,140.09,85.92336861]
[1642441311436,0.25,140.18,140.09,85.92336861]
[1642441312035,0.25,140.18,140.09,62.22716861]
[1642441312838,8.14629609,140.17,140.09,62.22716861]
[1642441313535,40.04714774,140.16,140.09,62.22716861]
[1642441313739,40.04714774,140.16,140.1,0.25]
[1642441314337,4.07275962,140.17,140.1,0.25]
[1642441314837,4.07353647,140.18,140.1,0.25]
[1642441315641,50.60527535,140.19,140.1,0.25]
[1642441315841,50.60527535,140.19,140.1,10.54]
[1642441316043,4.07353647,140.19,140.1,25.602]
[1642441316946,40.55901182,140.18,140.1,25.602]
[1642441317145,40.55901182,140.18,140.1,10.54]
[1642441317645,0.25,140.17,140.1,10.54]
[1642441318048,0.25,140.17,140.11,45.77228965]
[1642441318444,40.55901182,140.18,140.11,45.77228965]
[1642441318846,44.63254829,140.18,140.12,0.25]
[1642441322851,4.07353647,140.18,140.12,0.25]
[1642441323252,4.07353647,140.19,140.12,0.25]
[1642441323453,4.07353647,140.19,140.12,7.401]
[1642441323749,44.71885381,140.19,140.12,7.661]
[1642441323950,44.71885381,140.19,140.12,13.661]
[1642441324150,2.03529532,140.17,140.13,35.48064142]
[1642441324351,2.03529532,140.17,140.14,0.25]
[1642441326452,2.03529532,140.18,140.14,0.25]
[1642441330861,2.03529532,140.18,140.15,0.19968201]
[1642441332463,6.31439994,140.17,140.15,0.19968201]
[1642441332883,6.06439994,140.17,140.15,0.19968201]
[1642441333886,5.56439994,140.17,140.15,0.19968201]
[1642441334087,2.03529532,140.16,140.15,0.19968201]
[1642441334685,46.88520179,140.16,140.15,0.19968201]
[1642441334986,40.0,140.15,140.1,47.9145461]
[1642441335185,47.13520179,140.16,140.1,47.9145461]
[1642441335990,2.28529532,140.16,140.1,47.9145461]
[1642441336186,2.03529532,140.15,140.1,47.9145461]
[1642441337288,2.03529532,140.14,140.1,47.9145461]
[1642441337490,2.03529532,140.14,140.1,53.9145461]
[1642441337689,2.03529532,140.14,140.1,47.9145461]
[1642441340597,2.03529532,140.14,140.11,0.25]
[1642441340797,2.03529532,140.14,140.12,0.5]
[1642441341497,2.03529532,140.14,140.13,38.99087654]
[1642441341898,2.03529532,140.14,140.13,39.24087654]
[1642441342098,2.03529532,140.17,140.13,39.24087654]
[1642441343100,2.03529532,140.17,140.13,39.44127676]
[1642441343801,2.03529532,140.17,140.14,0.25]
[1642441344003,2.03529532,140.17,140.16,43.23809318]
[1642441344404,7.59969526,140.17,140.13,0.20040022]
[1642441344604,5.06749529,140.17,140.13,0.20040022]
[1642441344804,0.25,140.16,140.13,0.20040022]
[1642441345405,46.00242225,140.16,140.13,0.20040022]
[1642441345605,5.56439994,140.15,140.13,0.20040022]
[1642441346406,2.03529532,140.14,140.13,0.20040022]
[1642441350512,2.03529532,140.14,140.13,0.70040022]
[1642441352041,2.03529532,140.16,140.13,0.70040022]
[1642441352843,2.03529532,140.15,140.13,0.20040022]
[1642441354049,2.03529532,140.15,140.14,0.5]
[1642441356854,8.14616906,140.18,140.14,0.5]
[1642441357053,4.07353647,140.18,140.14,0.5]
[1642441357752,4.07353647,140.18,140.15,43.52079989]
[1642441358153,8.14616906,140.2,140.16,0.25]
[1642441358956,4.07353647,140.2,140.16,0.25]
[1642441359155,4.07353647,140.21,140.16,0.25]
[1642441359751,59.95338492,140.22,140.16,0.25]
[1642441360353,41.25834745,140.21,140.16,0.25]
[1642441361363,41.25834745,140.21,140.13,23.31490022]
[1642441361560,41.25834745,140.21,140.13,33.60490022]
[1642441361759,41.25834745,140.21,140.14,0.25]
[1642441361961,45.33188392,140.21,140.14,0.25]
[1642441362359,45.33188392,140.21,140.14,41.22713079]
[1642441362959,8.14551254,140.2,140.14,41.22713079]
[1642441363359,0.25,140.19,140.13,0.20040022]
[1642441363760,32.72161254,140.2,140.13,0.20040022]
[1642441364761,28.64963647,140.2,140.13,0.45040022]
[1642441365562,4.07353647,140.2,140.13,6.85040022]
[1642441365764,4.07353647,140.2,140.13,23.40040022]
[1642441366767,4.07353647,140.2,140.13,94.33040022]
[1642441367167,8.14511051,140.21,140.13,94.33040022]
[1642441368265,59.95338492,140.22,140.13,94.33040022]
[1642441368463,70.60178492,140.22,140.13,23.40040022]
[1642441368875,70.60178492,140.22,140.13,23.14040022]
[1642441369064,70.60178492,140.22,140.13,22.89040022]
[1642441369268,10.80817081,140.34,140.2,0.31108471]
[1642441369468,23.49963958,140.39,140.34,1.0]
[1642441369665,23.49963958,140.39,140.35,0.5]
[1642441369865,23.49963958,140.39,140.35,8.718]
[1642441370097,23.49963958,140.39,140.35,19.008]
[1642441370265,23.49963958,140.39,140.36,0.25]
[1642441370665,23.49963958,140.39,140.35,6.0]
[1642441370868,23.49963958,140.39,140.36,0.25]
[1642441371065,10.6848,140.47,140.37,0.5]
[1642441371266,135.0,140.46,140.32,6.0]
[1642441371467,40.86971064,140.45,140.33,10.29]
[1642441371666,135.0,140.44,140.31,10.29]
[1642441372067,10.6899,140.4,140.37,0.00040022]
[1642441372268,3.28219997,140.39,140.37,0.00040022]
[1642441373067,13.97269997,140.39,140.37,0.00040022]
[1642441373269,84.90269997,140.39,140.37,0.00040022]
[1642441374473,94.68305486,140.39,140.37,0.00040022]
[1642441374670,138.03219997,140.38,140.37,0.00040022]
[1642441374870,138.28219997,140.38,140.37,0.00040022]
[1642441375070,146.41917131,140.38,140.37,0.00040022]
[1642441375271,17.41917131,140.38,140.37,0.00040022]
[1642441375471,11.41917131,140.38,140.37,0.00040022]
[1642441375871,145.44280968,140.37,140.29,37.08165098]
[1642441376072,44.44280968,140.37,140.29,37.08165098]
[1642441376272,0.25,140.36,140.29,37.08165098]
[1642441376473,44.44280968,140.37,140.29,37.08165098]
[1642441376674,44.44280968,140.37,140.3,10.29]
[1642441377077,44.44280968,140.37,140.3,16.29]
[1642441377805,0.25,140.36,140.3,16.29]
[1642441378204,10.6895,140.38,140.31,0.25]
[1642441378408,23.8692,140.39,140.31,10.54]
[1642441378906,1.62205449,140.44,140.32,70.93]
[1642441379107,1.62205449,140.44,140.33,10.29]
[1642441379306,40.70669788,140.43,140.34,47.95367349]
[1642441379506,7.62205449,140.44,140.35,10.29]
[1642441379708,24.9577,140.45,140.35,10.54]
[1642441379905,24.9577,140.45,140.35,16.8]
[1642441380119,22.7381,140.46,140.35,18.55619958]
[1642441380507,55.27581559,140.45,140.35,16.8]
[1642441380908,0.25,140.44,140.35,16.8]
[1642441381908,10.9348,140.44,140.35,16.54]
[1642441382109,10.9348,140.44,140.35,10.54]
[1642441382312,10.6848,140.44,140.35,10.54]
[1642441382908,24.81736644,140.44,140.35,10.29]
[1642441383109,39.27373865,140.42,140.32,10.29]
[1642441383311,38.1990603,140.39,140.32,10.29]
[1642441383710,38.1990603,140.39,140.32,61.27560644]
[1642441383910,38.1990603,140.39,140.33,0.25]
[1642441384310,35.627,140.43,140.33,0.25]
[1642441384511,6.0,140.44,140.33,0.25]
[1642441385215,22.9115,140.45,140.33,0.25]
[1642441385512,4.06637601,140.43,140.32,72.22090644]
[1642441385713,4.06637601,140.43,140.33,10.29]
[1642441385915,0.25,140.42,140.33,16.55]
[1642441386615,4.06637601,140.43,140.33,98.1642]
[1642441386815,4.06637601,140.43,140.34,0.25]
[1642441387016,4.06637601,140.43,140.35,81.22]
[1642441387216,4.06637601,140.41,140.35,81.22]
[1642441387416,4.06637601,140.41,140.36,0.25]
[1642441387817,3.56637601,140.41,140.38,40.0625597]
[1642441388220,3.56637601,140.45,140.39,0.25]
[1642441388419,3.56637601,140.45,140.39,10.54]
[1642441388918,3.56637601,140.45,140.39,10.8]
[1642441389119,38.21272291,140.46,140.39,10.8]
[1642441390619,38.21272291,140.46,140.39,10.54]
[1642441390821,38.21272291,140.46,140.36,33.7682]
[1642441391022,0.25,140.45,140.36,33.7682]
[1642441391221,0.25,140.45,140.37,0.25]
[1642441391422,0.25,140.45,140.36,39.7682]
[1642441391820,10.9341,140.45,140.36,39.7682]
[1642441392019,10.9341,140.45,140.36,10.29]
[1642441392421,19.06606967,140.45,140.36,10.29]
[1642441393023,18.81606967,140.45,140.36,10.29]
[1642441393422,18.81606967,140.45,140.37,0.25]
[1642441394024,18.81606967,140.45,140.36,10.29]
[1642441394224,70.93,140.44,140.34,10.29]
[1642441394523,10.6882,140.41,140.31,24.0781]
[1642441394724,44.92390667,140.4,140.31,24.0781]
[1642441394928,44.92390667,140.4,140.32,44.53301303]
[1642441395122,8.13196967,140.43,140.32,44.53301303]
[1642441395325,8.13196967,140.43,140.32,55.21801303]
[1642441395525,8.13196967,140.43,140.33,0.25]
[1642441396126,38.21276731,140.43,140.33,0.25]
[1642441396526,38.21276731,140.43,140.34,10.29]
[1642441396726,38.21276731,140.43,140.35,44.76952073]
[1642441396928,38.21276731,140.43,140.35,45.01952073]
[1642441397327,0.25,140.42,140.35,45.01952073]
[1642441397728,38.21276731,140.43,140.35,45.01952073]
[1642441397931,38.21276731,140.43,140.35,45.27952073]
[1642441399935,38.21276731,140.43,140.35,51.27952073]
[1642441400335,38.21276731,140.43,140.35,45.27952073]
[1642441400734,38.21276731,140.43,140.35,55.56952073]
[1642441401735,38.21276731,140.43,140.35,61.56952073]
[1642441402034,38.21276731,140.43,140.35,55.56952073]
[1642441403236,38.21276731,140.43,140.35,61.56952073]
[1642441403436,38.21276731,140.43,140.35,55.56952073]
[1642441404264,38.21276731,140.43,140.35,61.56952073]
[1642441406471,38.21276731,140.43,140.35,72.25212073]
[1642441407972,37.71276731,140.43,140.35,72.25212073]
[1642441408175,10.6834,140.46,140.35,72.25212073]
[1642441408373,0.25,140.45,140.36,70.93]
[1642441408573,0.25,140.45,140.37,10.29]
[1642441408772,0.25,140.45,140.37,10.8]
[1642441408973,0.25,140.45,140.37,16.8]
[1642441409173,24.9291,140.47,140.38,45.90150863]
[1642441409375,24.9291,140.47,140.39,10.54]
[1642441409674,46.82927991,140.48,140.39,10.54]
[1642441409874,0.25,140.47,140.39,27.4795]
[1642441410074,0.25,140.47,140.39,98.4095]
[1642441410474,46.82927991,140.48,140.39,98.4095]
[1642441410680,47.80604546,140.5,140.39,98.4095]
[1642441410978,0.17934546,140.5,140.39,124.99949958]
[1642441411478,0.17934546,140.5,140.39,54.06949958]
[1642441411678,38.8541616,140.52,140.4,89.0]
[1642441411877,38.8541616,140.52,140.41,59.23117804]
[1642441412075,0.25,140.51,140.41,59.23117804]
[1642441412273,0.25,140.51,140.41,65.49117804]
[1642441412473,0.25,140.51,140.41,136.42117804]
[1642441412674,0.25,140.51,140.41,65.49117804]
[1642441412873,8.37800601,140.51,140.41,65.49117804]
[1642441414178,7.87800601,140.51,140.41,65.49117804]
[1642441415078,7.87800601,140.51,140.41,89.26587804]
[1642441415779,7.87800601,140.51,140.41,89.01587804]
[1642441416179,7.87800601,140.51,140.41,159.94587804]
[1642441416378,7.87800601,140.51,140.41,161.70207762]
[1642441416579,7.87800601,140.51,140.41,90.77207762]
[1642441416979,95.0337,140.55,140.41,90.77207762]
[1642441417180,101.0337,140.55,140.42,70.93]
[1642441417380,30.1037,140.55,140.45,10.6744]
[1642441417580,45.78395029,140.56,140.46,49.72775839]
[1642441417780,43.74011447,140.58,140.46,56.23775839]
[1642441417981,20.57991447,140.58,140.46,57.99395797]
[1642441418184,10.16461447,140.6,140.46,57.99395797]
[1642441418380,10.16461447,140.6,140.47,24.8559]
[1642441418583,10.16461447,140.6,140.48,10.29]
[1642441418779,10.16461447,140.6,140.48,25.429]
[1642441418979,46.09766473,140.59,140.49,47.65037718]
[1642441419180,46.09766473,140.59,140.5,10.29]
[1642441419379,10.16461447,140.6,140.5,16.8]
[1642441419579,10.16461447,140.6,140.51,10.6703]
[1642441419779,10.16461447,140.6,140.52,10.54]
[1642441419979,10.16461447,140.64,140.52,10.54]
[1642441420181,10.16461447,140.64,140.52,16.54]
[1642441420380,41.3670321,140.63,140.52,62.83735681]
[1642441420785,0.25,140.62,140.52,62.83735681]
[1642441421187,10.9212,140.62,140.52,16.54]
[1642441421385,10.9212,140.62,140.52,10.29]
[1642441421784,12.35296419,140.62,140.52,10.29]
[1642441422484,12.35296419,140.62,140.49,10.29]
[1642441422682,12.35296419,140.62,140.5,40.07886142]
[1642441422883,12.35296419,140.62,140.49,10.29]
[1642441423687,70.93,140.61,140.49,10.29]
[1642441423886,40.69035149,140.6,140.49,10.29]
[1642441424084,10.6742,140.58,140.49,10.29]
[1642441424284,0.25,140.57,140.49,10.29]
[1642441424885,36.35136064,140.57,140.49,10.29]
[1642441425288,10.6762,140.56,140.49,10.29]
[1642441425687,0.25,140.55,140.49,10.29]
[1642441426789,71.18,140.56,140.49,10.29]
[1642441427689,10.677,140.55,140.49,10.29]
[1642441427890,37.54210372,140.54,140.49,10.29]
[1642441428091,37.54210372,140.54,140.45,10.29]
[1642441428291,70.93,140.53,140.45,10.54]
[1642441428699,81.6079,140.53,140.45,10.29]
[1642441429491,81.1079,140.53,140.45,10.29]
[1642441430219,81.1079,140.53,140.46,0.25]
[1642441430420,0.25,140.52,140.46,0.25]
[1642441430619,0.25,140.52,140.45,0.25]
[1642441431522,16.77323102,140.53,140.45,10.54]
[1642441431722,6.09533102,140.53,140.45,12.29619958]
[1642441431922,6.09533102,140.53,140.45,89.22619958]
[1642441432721,46.46189232,140.53,140.45,89.22619958]
[1642441433523,46.46189232,140.53,140.45,18.04619958]
[1642441433724,0.25,140.52,140.45,10.29]
[1642441434324,10.9286,140.52,140.45,10.29]
[1642441434825,10.9286,140.52,140.46,0.25]
[1642441436230,0.25,140.52,140.46,0.25]
[1642441439935,0.25,140.52,140.42,1.75619958]
[1642441440146,19.7139,140.52,140.4,10.29]
[1642441440335,21.47009958,140.52,140.38,10.29]
[1642441440536,23.2377,140.51,140.38,57.48111363]
[1642441440741,70.93,140.49,140.38,57.48111363]
[1642441440936,43.7787261,140.5,140.38,57.48111363]
[1642441441136,54.4595261,140.5,140.38,68.16121363]
[1642441441366,52.70332652,140.5,140.38,74.16121363]
[1642441441736,42.02252652,140.5,140.38,74.16121363]
[1642441441939,42.02252652,140.5,140.39,0.25]
[1642441442238,42.02252652,140.5,140.41,45.38772916]
[1642441442641,42.02252652,140.5,140.42,0.25]
[1642441443840,41.77252652,140.5,140.42,0.25]
[1642441444041,6.09533102,140.51,140.42,0.25]
[1642441444240,6.09533102,140.51,140.43,10.29]
[1642441444640,6.09533102,140.51,140.44,0.25]
[1642441445042,6.09533102,140.51,140.44,48.43632421]
[1642441445239,6.09533102,140.51,140.44,59.11142421]
[1642441445439,6.09533102,140.51,140.44,48.43632421]
[1642441445840,48.45280168,140.52,140.44,48.43632421]
[1642441446643,48.45280168,140.52,140.44,54.43632421]
[1642441446841,30.01803102,140.54,140.44,54.43632421]
[1642441447041,30.01803102,140.54,140.45,10.29]
[1642441447242,6.09533102,140.54,140.46,0.25]
[1642441447641,6.09533102,140.54,140.46,10.9237]
[1642441447842,6.09533102,140.54,140.47,40.66270419]
[1642441448242,6.09533102,140.54,140.48,0.25]
[1642441449644,6.09533102,140.56,140.48,0.25]
[1642441450043,6.09533102,140.56,140.48,10.9228]
[1642441450443,6.09533102,140.56,140.49,10.29]
[1642441450844,6.09533102,140.56,140.5,0.25]
[1642441451246,6.09533102,140.56,140.5,39.73529516]
[1642441451444,40.09484169,140.57,140.5,39.73529516]
[1642441451644,40.09484169,140.57,140.5,45.73529516]
[1642441452248,40.09484169,140.57,140.5,6.25]
[1642441452447,40.09484169,140.57,140.5,0.25]
[1642441453248,0.25,140.56,140.49,16.29]
[1642441454451,0.25,140.56,140.5,35.10266581]